[Event "CCT Julius Baer-D2-Place 2024"]
[Site "Online"]
[Date "2024.09.26"]
[Round "1.2"]
[White "Yakubboev, Nodirbek"]
[Black "Makarian, Rudik"]
[Result "1-0"]
[ECO "A13"]
[WhiteElo "2666"]
[BlackElo "2550"]
[Annotator "TA"]
[PlyCount "103"]
[EventDate "2024.09.25"]
[EventType "swiss"]
[EventCountry "NET"]
[SourceTitle "playchess.com"]
[Source "ChessBase"]
[SourceQuality "1"]
[TimeControl "600+2"]

{[%evp 9,103,12,5,-1,18,0,0,2,18,0,3,7,14,7,20,21,25,4,11,14,26,27,36,27,30,21,16,16,47,50,56,48,47,39,57,21,31,20,32,25,22,22,23,27,24,26,46,25,41,44,33,33,35,33,33,33,34,34,37,38,100,99,106,97,106,102,105,106,128,125,131,139,146,145,135,140,171,168,182,200,195,195,179,185,205,206,206,190,199,202,205,209,203,204,1153,1102]} 1. c4 {[%emt 0:00:10]} e6 {[%emt 0:00:05]} 2. g3 {[%emt 0:00:10]} d5 {[%emt 0:00:01]} 3. Bg2 {[%emt 0:00:01]} Nf6 {[%emt 0:00:04]} 4. Nf3 {[%emt 0:00:03]} dxc4 {[%emt 0:00:09]} 5. Qa4+ {[%emt 0:00:05]} Bd7 {[%emt 0:00:01]} 6. Qxc4 {[%emt 0:00:01]} c5 {[%emt 0:00:00]} 7. Ne5 {[%emt 0:00:02]} Qc8 {[%emt 0:00:01]} 8. Qd3 {[%emt 0:00:09] The position is equal.} Be7 {[%emt 0:00:17]} 9. b3 {[%emt 0:02:21]} (9. Nxd7 {simplifies} Nbxd7 10. Qb3 Rb8 11. d3) 9... O-O {[%emt 0:00:10]} 10. Nxd7 {[%emt 0:00:04]} Nfxd7 {[%emt 0:00:38]} 11. Bb2 {[%emt 0:00:05]} Nc6 {[%emt 0:00:02]} 12. Nc3 {[%emt 0:00:04]} Rd8 {[%emt 0:00:11]} 13. Rd1 {[%emt 0:00:04]} Nb6 {[%emt 0:01:26]} 14. Qb1 {[%emt 0:00:14]} Bf6 {[%emt 0:00:01]} 15. O-O {[%emt 0:01:04]} Qd7 {[%emt 0:01:44]} 16. Ba3 {[%emt 0:00:15] This pair of bishops is nice.} Be7 {[%emt 0:01:51]} 17. d3 {[%emt 0:00:31]} Rac8 {[%emt 0:00:03]} 18. Ne4 {[%emt 0:00:07][%cal Bc3e4,Be4d2,Bd2f3][%mdl 32]} Nd4 {[%emt 0:00:21]} 19. e3 {[%emt 0:00:23]} Nb5 {[%emt 0:00:09]} 20. Bb2 {[%emt 0:00:04]} Nd5 {[%emt 0:00:01]} 21. Qa1 {[%emt 0:00:30]} Bf8 {[%emt 0:00:11]} 22. a4 {[%emt 0:00:42]} Nd6 {[%emt 0:00:02]} 23. Nd2 {[%emt 0:00:14]} Nb4 {[%emt 0:00:10]} 24. Qb1 {[%emt 0:00:07]} b6 {[%emt 0:00:06]} 25. h4 {[%emt 0:00:09]} h6 {[%emt 0:00:06]} 26. Nf3 {[%emt 0:00:09]} Qe8 {[%emt 0:00:40]} 27. Ne5 {[%emt 0:00:19]} f6 {[%emt 0:00:04]} 28. Nf3 {[%emt 0:00:33]} e5 {[%emt 0:00:08]} 29. Nd2 {[%emt 0:00:13]} Qg6 {[%emt 0:00:14]} 30. Nc4 {[%emt 0:00:05]} Nxc4 {[%emt 0:00:36]} 31. dxc4 {[%emt 0:00:23]} Qxb1 {[%emt 0:00:00]} 32. Rxb1 {[%emt 0:00:03][%cal Bd1b1,Bb1a1,Ba1a5][%mdl 32]} h5 {[%emt 0:00:22]} 33. Bc3 {[%emt 0:00:05]} Kf7 {[%emt 0:00:26]} 34. a5 {[%emt 0:00:08]} bxa5 {[%emt 0:00:19]} (34... Rc7 $14) 35. Ra1 $1 $16 {[%emt 0:00:04] White now steadily converts the win.} Nc6 {[%emt 0:00:24]} 36. Bxa5 {[%emt 0:00:05] White is more active.} Nxa5 {[%emt 0:00:02]} 37. Rxa5 {[%emt 0:00:00]} Rc7 {[%emt 0:00:02]} 38. Rfa1 {[%emt 0:00:07]} Rdd7 {[%emt 0:00:01]} 39. Bd5+ {[%emt 0:00:05]} Kg6 {[%emt 0:00:02]} 40. f3 {[%emt 0:00:11]} Kh6 {[%emt 0:00:02]} 41. Kf2 {[%emt 0:00:09]} g6 {[%emt 0:00:02][%cal Bg7g6,Bg6f5][%mdl 32]} 42. g4 {[%emt 0:00:05]} hxg4 {[%emt 0:00:03]} 43. fxg4 {[%emt 0:00:00]} f5 {[%emt 0:00:03]} 44. gxf5 {[%emt 0:00:07]} gxf5 {[%emt 0:00:00]} 45. Ra6+ {[%emt 0:00:02]} Rd6 {[%emt 0:00:05] [#]} 46. Rxd6+ $1 {[%emt 0:00:10]} ({Don't play} 46. Rxa7 $6 Rxa7 47. Rxa7 Kg6 $14) 46... Bxd6 $18 {[%emt 0:00:01][%mdl 4096] Endgame. KRB-KRB} 47. Ra6 {[%emt 0:00:01]} Rd7 {[%emt 0:00:02]} 48. Be6 {[%emt 0:00:02][%csl LRd7,LRf5]} Rd8 {[%emt 0:00:01]} 49. Bxf5 {[%emt 0:00:01]} ({Much less strong is} 49. Rxa7 $6 Kg6 $16) 49... Kh5 {[%emt 0:00:02]} 50. Kg3 {[%emt 0:00:04]} Rg8+ {[%emt 0:00:07] [#]} 51. Kh3 $1 {[%emt 0:00:03]} Rf8 $2 {[%emt 0:00:01]} (51... Be7 52. Be6 (52. Rxa7 Bxh4 $18) 52... Rg7 53. Rxa7 e4) 52. Bg4+ {[%emt 0:00:01] Weighted Error Value: White=0.03 (flawless) /Black=0.07 (flawless) .  Mistake:       	---       	Black=2      Inaccurate:     	White=1     	Black=1      OK:         	White=27    	Black=20     Best:        	White=2     	Black=2      Strong:       	White=1     	---} 1-0

[Event "CCT Julius Baer-D2-Place 2024"]
[Site "Online"]
[Date "2024.09.26"]
[Round "1.2"]
[White "Bosiocic, Marin"]
[Black "Indjic, Aleksandar"]
[Result "0-1"]
[ECO "A25"]
[WhiteElo "2555"]
[BlackElo "2611"]
[Annotator "TA"]
[PlyCount "94"]
[EventDate "2024.09.25"]
[EventType "swiss"]
[EventCountry "NET"]
[SourceTitle "playchess.com"]
[Source "ChessBase"]
[SourceQuality "1"]
[TimeControl "600+2"]

{[%evp 9,94,22,29,25,23,-16,23,26,26,28,10,14,28,35,37,38,44,0,0,0,0,0,-9,0,-8,-233,-221,-221,-211,-288,-269,-312,-304,-312,-266,-260,-258,-292,-210,-305,-299,-296,-228,-237,-208,-250,-237,-255,-260,-304,-298,-355,-265,-358,-338,-343,-347,-453,-482,-475,-453,-713,-685,-719,-658,-666,-658,-633,-768,-755,-745,-797,-462,-1377,-1370,-1280,-1239,-1766,-1174,-1155,-1141,-29983,-29984,-29989,-29988,-29988,-29987]} 1. c4 {[%emt 0:00:02]} e5 {[%emt 0:00:04]} 2. g3 {[%emt 0:00:02]} Nc6 {[%emt 0:00:07]} 3. Bg2 {[%emt 0:00:01]} Bc5 {[%emt 0:00:00]} 4. Nc3 {[%emt 0:00:08]} a6 {[%emt 0:00:02]} 5. e3 {[%emt 0:00:04]} Ba7 {[%emt 0:00:01]} 6. Nge2 {[%emt 0:00:04]} d6 {[%emt 0:00:01]} 7. O-O {[%emt 0:00:03]} Nf6 {[%emt 0:00:07]} 8. d3 {[%emt 0:00:03] White has an edge.} Bd7 {[%emt 0:00:02]} 9. h3 {[%emt 0:00:05]} Rb8 {[%emt 0:00:02]} 10. a3 {[%emt 0:00:05]} Qc8 {[%emt 0:00:02]} 11. Kh2 {[%emt 0:00:01]} h5 {[%emt 0:00:01]} 12. b4 {[%emt 0:00:25]} Ne7 {[%emt 0:00:04]} 13. f4 {[%emt 0:00:24]} h4 {[%emt 0:00:17]} 14. g4 {[%emt 0:00:10]} Bxg4 $1 {[%emt 0:00:02]} 15. fxe5 {[%emt 0:01:04]} Bxe2 {[%emt 0:00:02]} 16. Qxe2 {[%emt 0:00:01]} dxe5 {[%emt 0:00:00]} 17. Rxf6 $2 {[%emt 0:00:08] This move loses the game for White.} gxf6 $19 {[%emt 0:00:00]} 18. Bb2 {[%emt 0:00:02]} Qe6 {[%emt 0:00:18]} 19. Rf1 {[%emt 0:00:06]} c6 {[%emt 0:00:01] Repels Bd5} 20. c5 {[%emt 0:01:16]} f5 {[%emt 0:00:02] Against Ne4} 21. e4 {[%emt 0:01:06]} f4 {[%emt 0:00:05]} 22. Bf3 {[%emt 0:00:01]} Rd8 {[%emt 0:00:11]} 23. Bg4 {[%emt 0:00:01]} Qh6 {[%emt 0:00:02]} 24. Na4 {[%emt 0:00:10]} (24. Nb1 {keeps fighting.}) 24... Bb8 {[%emt 0:00:02]} 25. Nb6 {[%emt 0:00:02]} Bc7 {[%emt 0:00:25]} 26. Nc4 {[%emt 0:00:01]} f6 {[%emt 0:00:12]} 27. Kh1 {[%emt 0:00:10]} Rg8 {[%emt 0:00:08]} 28. Bc3 {[%emt 0:00:06]} Rg5 {[%emt 0:00:02]} 29. Rf3 {[%emt 0:00:28]} Kf8 {[%emt 0:00:02]} 30. a4 {[%emt 0:00:21]} Kg7 {[%emt 0:00:04]} 31. Qb2 {[%emt 0:00:02]} Qg6 {[%emt 0:00:05]} 32. Qg2 {[%emt 0:00:32]} Kh6 {[%emt 0:00:17]} 33. Be1 {[%emt 0:00:16]} f5 {[%emt 0:00:12]} 34. exf5 {[%emt 0:00:03]} Nxf5 {[%emt 0:00:01]} 35. Nd2 {[%emt 0:00:03]} (35. Bxf5 $142 Rxg2 (35... Qxf5 $2 36. Ne3 $19) (35... Rxf5 $2 36. Qf1 $19) 36. Bxg6 Rxg6 37. Bxh4) 35... Ng3+ {[%emt 0:00:20]} 36. Bxg3 {[%emt 0:00:03]} hxg3 {[%emt 0:00:01]} 37. Ne4 {[%emt 0:00:02]} Rxg4 {[%emt 0:00:12]} 38. hxg4 {[%emt 0:00:01]} Qxg4 {[%emt 0:00:01]} 39. Kg1 {[%emt 0:00:01]} Rd4 {[%emt 0:00:26]} 40. Qh1+ {[%emt 0:01:08]} Qh5 {[%emt 0:00:04] aiming for ...Qxh1+.} 41. Qg2 {[%emt 0:00:03]} (41. Nxg3 $142 Qxh1+ (41... fxg3 $2 {loses.} 42. Rf6+ Kg5 43. Rf5+ Kxf5 44. Qxh5+ Kf4 45. Qf7+ Ke3 46. Qxc7 $18) 42. Nxh1) 41... Rxb4 {[%emt 0:00:09]} 42. Rf1 {[%emt 0:00:08] Prevents Rb1} Bd8 {[%emt 0:00:40][%cal Od8e7] Hoping for ...Be7!} 43. Qd2 {[%emt 0:00:18]} Kg6 {[%emt 0:00:21][%cal Ob4e4]} 44. Qa2 {[%emt 0:00:06]} Kg7 {[%emt 0:00:10][%cal Ob4e4] ( -> ...Rxe4!)} 45. Qd2 {[%emt 0:00:18] [#]} Be7 $1 {[%emt 0:00:09] Black mates.} 46. Re1 {[%emt 0:00:11] [#]} (46. Rc1 Rxe4) 46... Rxe4 $1 {[%emt 0:00:23]} 47. Rxe4 {[%emt 0:00:10]} Bxc5+ {[%emt 0:00:01] Weighted Error Value: White=0.69/Black=0.44.  Loses game:     	White=1     	---        Mistake:       	White=2     	---        Inaccurate:     	White=5     	Black=1      OK:         	White=10    	Black=13     Strong:       	---       	Black=1} 0-1

[Event "CCT Julius Baer-D2-Place 2024"]
[Site "Online"]
[Date "2024.09.26"]
[Round "1.2"]
[White "Kobalia, Mikhail"]
[Black "Sargsyan, Shant"]
[Result "0-1"]
[ECO "C54"]
[WhiteElo "2543"]
[BlackElo "2649"]
[Annotator "TA"]
[PlyCount "92"]
[EventDate "2024.09.25"]
[EventType "swiss"]
[EventCountry "NET"]
[SourceTitle "playchess.com"]
[Source "ChessBase"]
[SourceQuality "1"]
[TimeControl "600+2"]

{[%evp 23,92,0,6,0,0,-23,2,0,-6,-3,-4,-150,-152,-158,-195,-196,-211,-183,-194,-311,-330,-325,-314,-304,-332,-688,-711,-1153,-1142,-969,-343,-343,-331,-426,-425,-408,-383,-411,-283,-291,-304,-300,-318,-313,-275,-284,-283,-301,-294,-389,-329,-470,-412,-502,-495,-751,-745,-971,-949,-908,-744,-740,-710,-903,-896,-4898,-835,-890,-891,-866,-859]} 1. e4 {[%emt 0:00:03]} e5 {[%emt 0:00:03]} 2. Nf3 {[%emt 0:00:02]} Nc6 {[%emt 0:00:01]} 3. Bc4 {[%emt 0:00:03]} Nf6 {[%emt 0:00:03]} 4. d3 {[%emt 0:00:03]} Bc5 {[%emt 0:00:01]} 5. O-O {[%emt 0:00:03]} O-O {[%emt 0:00:01]} 6. c3 {[%emt 0:00:04]} d5 {[%emt 0:00:03]} 7. exd5 {[%emt 0:00:02]} Nxd5 {[%emt 0:00:00]} 8. Re1 {[%emt 0:00:08]} Bg4 {[%emt 0:00:02]} 9. h3 {[%emt 0:00:20] C54: Giuoco Piano: 4 c3 Nf6, main lines with 5 d4 and 5 d3.} Bh5 {[%emt 0:00:02]} 10. b4 {[%emt 0:00:29]} Be7 {[%emt 0:00:42]} 11. Bb2 {[%emt 0:00:22]} Nf4 {[%emt 0:00:46]} 12. Bc1 {[%emt 0:00:09]} Nd5 {[%emt 0:00:16]} 13. a4 {[%emt 0:01:09] 13.Nbd2 gains popularity.} Bf6 {[%emt 0:00:29]} 14. Bb2 {[%emt 0:00:22]} e4 $146 {[%emt 0:01:17]} ({Predecessor:} 14... Ndxb4 15. g4 Bg6 16. g5 Bxg5 17. cxb4 Bh5 18. Bc3 Qd6 19. Na3 Rad8 20. Nc2 Qg6 {0-1 Schneider,K (1975)-Paehtz,T (2361) WchT Seniors 50 2016 (6.4)}) 15. dxe4 {[%emt 0:00:21]} Ndxb4 {[%emt 0:00:04]} 16. Qb3 {[%emt 0:02:10]} Bxf3 {[%emt 0:01:03]} 17. gxf3 {[%emt 0:00:02]} (17. cxb4 $11 Nd4 18. Bxd4 Bxd4 (18... Qxd4 19. Ra2 $16) 19. Ra2) 17... Nd3 $17 {[%emt 0:00:49]} 18. Rd1 {[%emt 0:00:08] [#]} Na5 $1 {[%emt 0:00:01]} (18... Nce5 19. Bxd3 Nxf3+ (19... Nxd3 $2 20. Qc2 $18) 20. Kg2 Nh4+ 21. Kf1 $14) 19. Qc2 {[%emt 0:01:41]} ({Don't go for} 19. Rxd3 $2 Qxd3 (19... Nxb3 20. Rxd8 Nxa1 21. Rxf8+ Rxf8 22. Bxa1 $16) 20. Bxd3 Nxb3 $19) 19... Nxc4 {[%emt 0:00:07]} 20. Rxd3 {[%emt 0:00:01]} Qc8 {[%emt 0:00:16]} 21. Kg2 {[%emt 0:00:07]} (21. f4 $142) 21... Ne5 $19 {[%emt 0:00:04]} 22. Rd1 {[%emt 0:00:29]} Ng6 {[%emt 0:00:01]} 23. Bc1 {[%emt 0:00:02]} Be5 {[%emt 0:00:09]} 24. f4 $2 {[%emt 0:00:11]} (24. Rh1) 24... Bxf4 $19 {[%emt 0:00:10]} 25. Bxf4 {[%emt 0:00:49]} Nxf4+ {[%emt 0:00:00]} 26. Kg3 {[%emt 0:00:03]} Nh5+ $2 {[%emt 0:00:36]} (26... Qxh3+ 27. Kxf4 f5 28. exf5 Rae8) 27. Kh2 $19 {[%emt 0:00:05]} Qe6 {[%emt 0:00:01]} (27... Nf4 $2 28. Rd3 Nxd3 29. Qxd3 $19) 28. Qe2 {[%emt 0:00:29]} Qe5+ {[%emt 0:00:12]} 29. Kh1 {[%emt 0:00:02]} Nf4 {[%emt 0:00:05]} 30. Qf3 {[%emt 0:00:02]} Rad8 {[%emt 0:00:08]} 31. Na3 {[%emt 0:00:05]} Ne6 {[%emt 0:00:24]} 32. Nc4 {[%emt 0:00:07]} Qc5 {[%emt 0:00:01]} 33. Ne3 {[%emt 0:00:07]} Qxc3 {[%emt 0:00:10]} 34. Rdc1 {[%emt 0:00:02]} Qe5 {[%emt 0:00:06]} 35. Rab1 {[%emt 0:00:14]} b6 {[%emt 0:00:07]} 36. Rg1 {[%emt 0:00:03]} g6 {[%emt 0:00:46]} 37. Nd5 {[%emt 0:00:03]} (37. Ng4 $142 Qf4 38. Qxf4 Nxf4 39. Rgc1) 37... Nd4 {[%emt 0:00:25]} 38. Qg2 {[%emt 0:00:10]} f5 {[%emt 0:00:15]} 39. Rbe1 {[%emt 0:00:14]} (39. Nc3 $142) 39... fxe4 $19 {[%emt 0:00:11]} 40. Nc3 {[%emt 0:00:09]} Nf3 {[%emt 0:00:03]} 41. Nxe4 {[%emt 0:00:01]} Nxe1 {[%emt 0:00:07]} 42. Rxe1 {[%emt 0:00:02]} Qf4 {[%emt 0:00:02]} 43. Ng5 {[%emt 0:00:05]} Qxf2 {[%emt 0:00:19]} 44. Qe4 {[%emt 0:00:02]} Qf6 {[%emt 0:00:15]} 45. Qh4 {[%emt 0:00:04]} h5 {[%emt 0:00:10]} 46. Qc4+ {[%emt 0:00:02]} Kh8 {[%emt 0:00:01]} 0-1